[Event "Late-Titled-Tuesday-Blitz-February-06-2024"]
[Site "Chess.com"]
[Date "2024.02.06"]
[Round "4"]
[White "riconaipe"]
[Black "emeli_chess"]
[Result "1-0"]
[WhiteElo "2592"]
[BlackElo "2388"]
[TimeControl "180+1"]
[EndTime "14:39:26 PST"]
[Termination "riconaipe won on time"]

1. e4 {[%clk 0:03:00.9]} 1... e5 {[%clk 0:02:59.5]} 2. Nf3 {[%clk 0:02:58.8]}
2... Nc6 {[%clk 0:02:59.8]} 3. Bb5 {[%clk 0:02:59.5]} 3... a6 {[%clk 0:02:59.7]}
4. Ba4 {[%clk 0:02:59.9]} 4... Nf6 {[%clk 0:03:00]} 5. O-O {[%clk 0:02:59.5]}
5... Nxe4 {[%clk 0:03:00.3]} 6. Re1 {[%clk 0:02:57.8]} 6... Nc5 {[%clk
0:02:59.6]} 7. Bxc6 {[%clk 0:02:57.4]} 7... dxc6 {[%clk 0:02:59.2]} 8. d4 {[%clk
0:02:55.9]} 8... Ne6 {[%clk 0:02:53.7]} 9. Nxe5 {[%clk 0:02:46.4]} 9... Be7
{[%clk 0:02:52]} 10. c3 {[%clk 0:02:45.5]} 10... O-O {[%clk 0:02:51.7]} 11. Nd2
{[%clk 0:02:45.7]} 11... c5 {[%clk 0:02:50.8]} 12. Ndf3 {[%clk 0:02:32.3]} 12...
cxd4 {[%clk 0:02:50.3]} 13. cxd4 {[%clk 0:02:33.2]} 13... c6 {[%clk 0:02:48.5]}
14. Be3 {[%clk 0:02:32.1]} 14... f6 {[%clk 0:02:42.9]} 15. Nd3 {[%clk
0:02:26.7]} 15... Nc7 {[%clk 0:02:34.7]} 16. Rc1 {[%clk 0:02:19.3]} 16... Nd5
{[%clk 0:02:32.6]} 17. Qb3 {[%clk 0:02:16.8]} 17... Rf7 {[%clk 0:02:30.5]} 18.
Bd2 {[%clk 0:02:10.4]} 18... Bf8 {[%clk 0:02:28.9]} 19. Nc5 {[%clk 0:02:09.7]}
19... Rb8 {[%clk 0:02:14.8]} 20. Nxa6 {[%clk 0:02:06.3]} 20... Ra8 {[%clk
0:02:04.4]} 21. Nc5 {[%clk 0:02:06]} 21... Bg4 {[%clk 0:01:50.6]} 22. a4 {[%clk
0:02:04.7]} 22... Bxf3 {[%clk 0:01:44.9]} 23. Qxf3 {[%clk 0:02:04]} 23... Bxc5
{[%clk 0:01:44.4]} 24. dxc5 {[%clk 0:01:53.4]} 24... Rxa4 {[%clk 0:01:44]} 25.
h3 {[%clk 0:01:46]} 25... Rd4 {[%clk 0:01:19.3]} 26. Red1 {[%clk 0:01:37.7]}
26... Re7 {[%clk 0:01:15]} 27. Be1 {[%clk 0:01:29.1]} 27... Qe8 {[%clk
0:01:00.6]} 28. Ba5 {[%clk 0:01:20.8]} 28... Rde4 {[%clk 0:00:58]} 29. b4 {[%clk
0:01:11.5]} 29... Re1+ {[%clk 0:00:48.9]} 30. Kh2 {[%clk 0:01:07.8]} 30... Qb8+
{[%clk 0:00:34.9]} 31. g3 {[%clk 0:01:07.7]} 31... R1e2 {[%clk 0:00:35]} 32. Kg2
{[%clk 0:00:58.7]} 32... R7e3 {[%clk 0:00:31.4]} 33. Qf5 {[%clk 0:00:47.7]}
33... Qxg3+ {[%clk 0:00:30.1]} 34. Kf1 {[%clk 0:00:45.4]} 34... Rxf2+ {[%clk
0:00:17.2]} 35. Qxf2 {[%clk 0:00:44.5]} 35... Qxh3+ {[%clk 0:00:17.5]} 36. Qg2
{[%clk 0:00:30.1]} 36... Rf3+ {[%clk 0:00:17.4]} 37. Kg1 {[%clk 0:00:26.4]}
37... Rg3 {[%clk 0:00:17.4]} 38. Rc2 {[%clk 0:00:20.5]} 38... Nf4 {[%clk
0:00:10.8]} 39. Rd8+ {[%clk 0:00:19.1]} 39... Kf7 {[%clk 0:00:10.8]} 40. Rd7+
{[%clk 0:00:15.2]} 40... Kg6 {[%clk 0:00:06.6]} 41. Rdd2 {[%clk 0:00:06.4]}
41... Rxg2+ {[%clk 0:00:05]} 42. Rxg2+ {[%clk 0:00:07.3]} 42... Nxg2 {[%clk
0:00:03.4]} 43. Rxg2+ {[%clk 0:00:08.2]} 1-0

[Event "Late-Titled-Tuesday-Blitz-February-06-2024"]
[Site "Chess.com"]
[Date "2024.02.06"]
[Round "4"]
[White "vladoboch"]
[Black "OYAcosta"]
[Result "0-1"]
[WhiteElo "2455"]
[BlackElo "2188"]
[TimeControl "180+1"]
[EndTime "14:39:26 PST"]
[Termination "OYAcosta won by resignation"]

1. e4 {[%clk 0:02:54.9]} 1... c6 {[%clk 0:03:00]} 2. d4 {[%clk 0:02:55]} 2... d5
{[%clk 0:03:00.9]} 3. e5 {[%clk 0:02:55.7]} 3... Bf5 {[%clk 0:03:00.9]} 4. h4
{[%clk 0:02:56.5]} 4... h5 {[%clk 0:03:01]} 5. c4 {[%clk 0:02:57.3]} 5... e6
{[%clk 0:03:01.2]} 6. Nc3 {[%clk 0:02:58]} 6... Nd7 {[%clk 0:03:00.3]} 7. cxd5
{[%clk 0:02:58.7]} 7... cxd5 {[%clk 0:02:59.3]} 8. Bd3 {[%clk 0:02:59.4]} 8...
Bxd3 {[%clk 0:02:58.9]} 9. Qxd3 {[%clk 0:03:00.3]} 9... Ne7 {[%clk 0:02:59.3]}
10. Bg5 {[%clk 0:02:58.9]} 10... Qb6 {[%clk 0:02:58.9]} 11. Nf3 {[%clk
0:02:55.3]} 11... Nc6 {[%clk 0:02:58.9]} 12. O-O {[%clk 0:02:52.7]} 12... a6
{[%clk 0:02:57.3]} 13. a3 {[%clk 0:02:51.7]} 13... Rc8 {[%clk 0:02:50]} 14. b4
{[%clk 0:02:49.6]} 14... g6 {[%clk 0:02:35]} 15. Rac1 {[%clk 0:02:47.1]} 15...
Bg7 {[%clk 0:02:33]} 16. Na4 {[%clk 0:02:41.9]} 16... Qa7 {[%clk 0:02:33.4]} 17.
Nc5 {[%clk 0:02:40.3]} 17... Nxc5 {[%clk 0:02:33.2]} 18. bxc5 {[%clk 0:02:40.2]}
18... O-O {[%clk 0:02:32.3]} 19. Rb1 {[%clk 0:02:39.1]} 19... Rc7 {[%clk
0:01:54.7]} 20. Qe3 {[%clk 0:02:38.1]} 20... Na5 {[%clk 0:01:46.4]} 21. Bh6
{[%clk 0:02:31.6]} 21... Nc4 {[%clk 0:01:36.5]} 22. Qg5 {[%clk 0:02:30.2]} 22...
b6 {[%clk 0:01:21.1]} 23. cxb6 {[%clk 0:02:23.7]} 23... Nxb6 {[%clk 0:01:20.6]}
24. Bxg7 {[%clk 0:02:02.9]} 24... Kxg7 {[%clk 0:01:21]} 25. Qf6+ {[%clk
0:02:03.8]} 25... Kg8 {[%clk 0:01:19.5]} 26. Rb3 {[%clk 0:01:40.8]} 26... Nd7
{[%clk 0:01:14.5]} 27. Qf4 {[%clk 0:01:40.1]} 27... Rb8 {[%clk 0:01:09.2]} 28.
Re3 {[%clk 0:01:17]} 28... Nf8 {[%clk 0:00:51.3]} 29. Qh6 {[%clk 0:01:06.2]}
29... Rbc8 {[%clk 0:00:41.5]} 30. Ng5 {[%clk 0:00:57.7]} 30... Qxd4 {[%clk
0:00:35.7]} 31. Kh1 {[%clk 0:00:34]} 31... Rc1 {[%clk 0:00:33.1]} 32. Rxc1
{[%clk 0:00:27.2]} 32... Qxh4+ {[%clk 0:00:30.3]} 33. Rh3 {[%clk 0:00:15.1]}
33... Rxc1+ {[%clk 0:00:30.1]} 34. Kh2 {[%clk 0:00:15.9]} 34... Qxf2 {[%clk
0:00:26.5]} 35. Rf3 {[%clk 0:00:16.5]} 35... Qg1+ {[%clk 0:00:25.1]} 36. Kg3
{[%clk 0:00:15.5]} 36... Qe1+ {[%clk 0:00:22.6]} 37. Kh3 {[%clk 0:00:14.3]}
37... Rc3 {[%clk 0:00:20.9]} 38. Rxc3 {[%clk 0:00:07.8]} 38... Qxc3+ {[%clk
0:00:20.9]} 39. Nf3 {[%clk 0:00:08.7]} 39... Qd3 {[%clk 0:00:17.5]} 40. Qf4
{[%clk 0:00:09]} 40... Qf5+ {[%clk 0:00:17.9]} 41. Qxf5 {[%clk 0:00:09.6]} 41...
gxf5 {[%clk 0:00:18.8]} 42. Nd4 {[%clk 0:00:09.9]} 42... Ng6 {[%clk 0:00:19.7]}
43. Nc6 {[%clk 0:00:10.2]} 43... Kg7 {[%clk 0:00:19.4]} 44. Kg3 {[%clk
0:00:10.8]} 44... h4+ {[%clk 0:00:19.3]} 45. Kh2 {[%clk 0:00:10.6]} 45... f6
{[%clk 0:00:19.4]} 46. exf6+ {[%clk 0:00:10]} 46... Kxf6 {[%clk 0:00:20.3]} 47.
a4 {[%clk 0:00:10.7]} 47... e5 {[%clk 0:00:20.4]} 48. a5 {[%clk 0:00:11.2]}
48... Ne7 {[%clk 0:00:19.7]} 49. Nb4 {[%clk 0:00:11.8]} 49... d4 {[%clk
0:00:19]} 50. Nxa6 {[%clk 0:00:12.3]} 50... d3 {[%clk 0:00:19.7]} 51. Nc5 {[%clk
0:00:08.1]} 51... d2 {[%clk 0:00:20.3]} 0-1

[Event "Late-Titled-Tuesday-Blitz-February-06-2024"]
[Site "Chess.com"]
[Date "2024.02.06"]
[Round "4"]
[White "mishanick"]
[Black "hakanazeri2"]
[Result "0-1"]
[WhiteElo "3041"]
[BlackElo "2636"]
[TimeControl "180+1"]
[EndTime "14:39:29 PST"]
[Termination "hakanazeri2 won on time"]

1. d4 {[%clk 0:01:03.6]} 1... Nf6 {[%clk 0:02:31.3]} 2. c4 {[%clk 0:01:02.2]}
2... e6 {[%clk 0:02:31.5]} 3. Nc3 {[%clk 0:01:00.7]} 3... Bb4 {[%clk 0:02:31.5]}
4. e3 {[%clk 0:01:01.3]} 4... O-O {[%clk 0:02:31.2]} 5. Bd3 {[%clk 0:01:02]}
5... c5 {[%clk 0:02:31.4]} 6. Nf3 {[%clk 0:00:58.7]} 6... d5 {[%clk 0:02:31.6]}
7. O-O {[%clk 0:00:58.9]} 7... cxd4 {[%clk 0:02:32.1]} 8. exd4 {[%clk
0:00:59.1]} 8... dxc4 {[%clk 0:02:32.7]} 9. Bxc4 {[%clk 0:01:00]} 9... b6 {[%clk
0:02:32.8]} 10. Qe2 {[%clk 0:01:00.7]} 10... Bb7 {[%clk 0:02:27.9]} 11. Rd1
{[%clk 0:01:01.3]} 11... Nc6 {[%clk 0:02:20.5]} 12. d5 {[%clk 0:01:00.3]} 12...
exd5 {[%clk 0:02:20.8]} 13. Nxd5 {[%clk 0:01:00.1]} 13... Nxd5 {[%clk
0:02:21.3]} 14. Bxd5 {[%clk 0:01:01]} 14... Qf6 {[%clk 0:02:04.4]} 15. Bg5
{[%clk 0:00:55.5]} 15... Qg6 {[%clk 0:02:01.6]} 16. Qc4 {[%clk 0:00:55.6]} 16...
Bc5 {[%clk 0:01:56.6]} 17. b4 {[%clk 0:00:45.4]} 17... Bxb4 {[%clk 0:01:42.5]}
18. Be4 {[%clk 0:00:31]} 18... Na5 {[%clk 0:01:28.9]} 19. Qxb4 {[%clk
0:00:19.7]} 19... Bxe4 {[%clk 0:01:20.5]} 20. Ne5 {[%clk 0:00:16]} 20... Qxg5
{[%clk 0:01:15.1]} 21. Qxe4 {[%clk 0:00:16.5]} 21... Rae8 {[%clk 0:01:13.2]} 22.
f4 {[%clk 0:00:16.9]} 22... Qe7 {[%clk 0:01:11.4]} 23. Rac1 {[%clk 0:00:12.4]}
23... f6 {[%clk 0:01:08.4]} 24. Qd5+ {[%clk 0:00:11.6]} 24... Qe6 {[%clk
0:01:08.5]} 25. Nf3 {[%clk 0:00:05.1]} 25... Qxd5 {[%clk 0:01:05]} 26. Rxd5
{[%clk 0:00:06]} 26... Rf7 {[%clk 0:01:05.4]} 27. Kf2 {[%clk 0:00:05.4]} 27...
Rfe7 {[%clk 0:01:05.7]} 28. Rc2 {[%clk 0:00:05.5]} 28... Nb7 {[%clk 0:01:03.9]}
29. Nd4 {[%clk 0:00:03.7]} 29... Nc5 {[%clk 0:01:03.9]} 30. Nf5 {[%clk
0:00:04.3]} 30... Re4 {[%clk 0:00:57.8]} 31. Nd6 {[%clk 0:00:04.6]} 31... Rd8
{[%clk 0:00:46.8]} 32. Kf3 {[%clk 0:00:02.9]} 32... Re6 {[%clk 0:00:45]} 33.
Rcd2 {[%clk 0:00:03.5]} 33... Rd7 {[%clk 0:00:41.9]} 34. Nf5 {[%clk 0:00:03.7]}
34... Rxd5 {[%clk 0:00:37.3]} 35. Rxd5 {[%clk 0:00:04.6]} 35... Re8 {[%clk
0:00:34.2]} 36. h4 {[%clk 0:00:04.1]} 36... g6 {[%clk 0:00:33.2]} 37. Nd4 {[%clk
0:00:04.5]} 37... Rc8 {[%clk 0:00:17.8]} 38. Nb5 {[%clk 0:00:04.1]} 38... a6
{[%clk 0:00:16.1]} 39. Nd4 {[%clk 0:00:04.3]} 39... Kf7 {[%clk 0:00:15.6]} 40.
Rd6 {[%clk 0:00:04.2]} 40... b5 {[%clk 0:00:15.6]} 41. Nc6 {[%clk 0:00:03.8]}
41... Rc7 {[%clk 0:00:14.6]} 42. Nb4 {[%clk 0:00:02.9]} 42... a5 {[%clk
0:00:14.1]} 43. Nc6 {[%clk 0:00:02.1]} 43... Nb7 {[%clk 0:00:11.8]} 0-1

[Event "Late-Titled-Tuesday-Blitz-February-06-2024"]
[Site "Chess.com"]
[Date "2024.02.06"]
[Round "4"]
[White "giomar27"]
[Black "kingofthenil"]
[Result "1-0"]
[WhiteElo "2443"]
[BlackElo "2671"]
[TimeControl "180+1"]
[EndTime "14:39:29 PST"]
[Termination "giomar27 won by checkmate"]

1. d4 {[%clk 0:03:00.9]} 1... Nf6 {[%clk 0:02:29.9]} 2. Nc3 {[%clk 0:03:01]}
2... e6 {[%clk 0:02:25.9]} 3. Bg5 {[%clk 0:02:58.2]} 3... Bb4 {[%clk 0:02:23.5]}
4. e4 {[%clk 0:02:57.5]} 4... h6 {[%clk 0:02:20.7]} 5. Bxf6 {[%clk 0:02:56.1]}
5... Qxf6 {[%clk 0:02:21.6]} 6. e5 {[%clk 0:02:56.5]} 6... Qe7 {[%clk
0:02:18.1]} 7. Bd3 {[%clk 0:02:56.1]} 7... c5 {[%clk 0:02:14.2]} 8. a3 {[%clk
0:02:50.4]} 8... Ba5 {[%clk 0:02:06]} 9. b4 {[%clk 0:02:49.4]} 9... cxb4 {[%clk
0:02:05.5]} 10. Nb5 {[%clk 0:02:49.5]} 10... bxa3+ {[%clk 0:02:03.4]} 11. c3
{[%clk 0:02:50]} 11... O-O {[%clk 0:02:02.1]} 12. Ne2 {[%clk 0:02:47.2]} 12...
a6 {[%clk 0:01:56.4]} 13. Nd6 {[%clk 0:02:46.4]} 13... Bc7 {[%clk 0:01:56.4]}
14. Ne4 {[%clk 0:02:38.8]} 14... d6 {[%clk 0:01:49.9]} 15. f4 {[%clk 0:02:37.6]}
15... dxe5 {[%clk 0:01:47.8]} 16. fxe5 {[%clk 0:02:37.5]} 16... Bd7 {[%clk
0:01:44.2]} 17. O-O {[%clk 0:02:37.5]} 17... Bc6 {[%clk 0:01:41.6]} 18. N2g3
{[%clk 0:02:37.4]} 18... Nd7 {[%clk 0:01:40.6]} 19. Qg4 {[%clk 0:02:27.5]} 19...
Bxe5 {[%clk 0:01:06.6]} 20. dxe5 {[%clk 0:02:09.3]} 20... Nxe5 {[%clk
0:01:07.5]} 21. Qe2 {[%clk 0:02:08.8]} 21... f5 {[%clk 0:00:53.5]} 22. Nf2
{[%clk 0:02:04.1]} 22... Qc5 {[%clk 0:00:53.5]} 23. Bc2 {[%clk 0:02:01.3]} 23...
Rae8 {[%clk 0:00:36.8]} 24. Rfe1 {[%clk 0:01:58.3]} 24... Ng4 {[%clk 0:00:31.8]}
25. Rf1 {[%clk 0:01:51.7]} 25... Ne3 {[%clk 0:00:28.3]} 26. Rfe1 {[%clk
0:01:44.2]} 26... Nxg2 {[%clk 0:00:28.1]} 27. Red1 {[%clk 0:01:36.8]} 27... Nf4
{[%clk 0:00:27]} 28. Qf1 {[%clk 0:01:34.1]} 28... Qxc3 {[%clk 0:00:24.2]} 29.
Rac1 {[%clk 0:01:30.6]} 29... Qf3 {[%clk 0:00:21.9]} 30. Nfh1 {[%clk 0:01:15]}
30... Qe3+ {[%clk 0:00:16.4]} 31. Nf2 {[%clk 0:01:15.3]} 31... h5 {[%clk
0:00:16.2]} 32. Re1 {[%clk 0:01:14.9]} 32... Qf3 {[%clk 0:00:14.4]} 33. Nfh1
{[%clk 0:01:14.6]} 33... h4 {[%clk 0:00:13]} 34. Qxf3 {[%clk 0:01:13]} 34...
Bxf3 {[%clk 0:00:13.9]} 35. Kf2 {[%clk 0:01:11.9]} 35... Bd5 {[%clk 0:00:10.5]}
36. Nf1 {[%clk 0:01:09.8]} 36... Rc8 {[%clk 0:00:08.5]} 37. Ne3 {[%clk
0:01:08.3]} 37... a2 {[%clk 0:00:05.5]} 38. Ba4 {[%clk 0:01:05.9]} 38... b5
{[%clk 0:00:04.9]} 39. Bc2 {[%clk 0:01:05.5]} 39... Rc3 {[%clk 0:00:04.4]} 40.
Nxd5 {[%clk 0:01:02.8]} 40... Nxd5 {[%clk 0:00:05]} 41. Ke2 {[%clk 0:00:58.2]}
41... Rfc8 {[%clk 0:00:05.2]} 42. Kd2 {[%clk 0:00:58.6]} 42... a1=Q {[%clk
0:00:04.4]} 43. Rxa1 {[%clk 0:00:57.9]} 43... Rxc2+ {[%clk 0:00:05.1]} 44. Kd3
{[%clk 0:00:58.1]} 44... R8c3+ {[%clk 0:00:03.6]} 45. Kd4 {[%clk 0:00:58.4]}
45... Kf7 {[%clk 0:00:03.6]} 46. Rxa6 {[%clk 0:00:58.1]} 46... Rd2+ {[%clk
0:00:03.3]} 47. Ke5 {[%clk 0:00:58.6]} 47... Rxh2 {[%clk 0:00:02.9]} 48. Ra7+
{[%clk 0:00:58]} 48... Kg6 {[%clk 0:00:02.8]} 49. Rg1+ {[%clk 0:00:57.2]} 49...
Kh6 {[%clk 0:00:02.7]} 50. Raxg7 {[%clk 0:00:57.2]} 50... Re3+ {[%clk
0:00:02.8]} 51. Kd6 {[%clk 0:00:57.1]} 51... Nf4 {[%clk 0:00:03]} 52. Rg8 {[%clk
0:00:55.7]} 52... Rd2+ {[%clk 0:00:03.6]} 53. Ke7 {[%clk 0:00:54.5]} 53... Ng6+
{[%clk 0:00:02.3]} 54. R8xg6+ {[%clk 0:00:52.4]} 54... Kh7 {[%clk 0:00:03.2]}
55. Rg7+ {[%clk 0:00:52.2]} 55... Kh8 {[%clk 0:00:03.6]} 56. Rg8+ {[%clk
0:00:37.4]} 56... Kh7 {[%clk 0:00:03.7]} 57. R1g7+ {[%clk 0:00:37.3]} 57... Kh6
{[%clk 0:00:04.2]} 58. Kf6 {[%clk 0:00:38]} 58... Rd8 {[%clk 0:00:02.2]} 59.
Rxd8 {[%clk 0:00:35.5]} 59... Rg3 {[%clk 0:00:02.2]} 60. Rh8# {[%clk 0:00:35.2]}
1-0

[Event "Late-Titled-Tuesday-Blitz-February-06-2024"]
[Site "Chess.com"]
[Date "2024.02.06"]
[Round "4"]
[White "neri_gaite"]
[Black "HanSchut"]
[Result "0-1"]
[WhiteElo "2018"]
[BlackElo "2255"]
[TimeControl "180+1"]
[EndTime "14:39:29 PST"]
[Termination "HanSchut won by resignation"]

1. d4 {[%clk 0:02:58.8]} 1... Nf6 {[%clk 0:02:59.3]} 2. c4 {[%clk 0:02:58.2]}
2... g6 {[%clk 0:02:59.7]} 3. Nc3 {[%clk 0:02:58]} 3... d5 {[%clk 0:03:00.2]} 4.
cxd5 {[%clk 0:02:57.5]} 4... Nxd5 {[%clk 0:03:01.1]} 5. e4 {[%clk 0:02:57.9]}
5... Nxc3 {[%clk 0:03:01.7]} 6. bxc3 {[%clk 0:02:58.8]} 6... Bg7 {[%clk
0:03:02.3]} 7. Qa4+ {[%clk 0:02:59.2]} 7... Qd7 {[%clk 0:02:41.5]} 8. Bb5 {[%clk
0:02:52.6]} 8... c6 {[%clk 0:02:40.8]} 9. Bd3 {[%clk 0:02:48.4]} 9... b5 {[%clk
0:02:38.1]} 10. Qa3 {[%clk 0:02:47]} 10... O-O {[%clk 0:02:25.8]} 11. Nf3 {[%clk
0:02:46.9]} 11... e5 {[%clk 0:02:25.8]} 12. Be3 {[%clk 0:02:35.4]} 12... a5
{[%clk 0:02:19.2]} 13. O-O {[%clk 0:02:29.7]} 13... b4 {[%clk 0:02:19.3]} 14.
cxb4 {[%clk 0:02:27.4]} 14... exd4 {[%clk 0:02:19.3]} 15. Bf4 {[%clk 0:02:09.3]}
15... Ba6 {[%clk 0:01:47.8]} 16. Bxa6 {[%clk 0:01:43.8]} 16... Nxa6 {[%clk
0:01:47]} 17. bxa5 {[%clk 0:01:42.1]} 17... c5 {[%clk 0:01:41.2]} 18. Rab1
{[%clk 0:01:37.1]} 18... Rfe8 {[%clk 0:01:38.1]} 19. Rfe1 {[%clk 0:01:34.6]}
19... Nb4 {[%clk 0:01:37.3]} 20. Rbc1 {[%clk 0:01:20.3]} 20... Qb5 {[%clk
0:01:33.8]} 21. Bd6 {[%clk 0:00:51.5]} 21... Rxa5 {[%clk 0:01:23.3]} 22. Qb3
{[%clk 0:00:47.1]} 22... Nd3 {[%clk 0:01:07.7]} 23. Qxb5 {[%clk 0:00:39.5]}
23... Rxb5 {[%clk 0:01:06.9]} 24. Rb1 {[%clk 0:00:40.4]} 24... Rxb1 {[%clk
0:01:01.1]} 25. Rxb1 {[%clk 0:00:41.3]} 25... c4 {[%clk 0:01:01.7]} 26. e5
{[%clk 0:00:12.6]} 26... Bxe5 {[%clk 0:00:52.8]} 27. Bxe5 {[%clk 0:00:11]} 27...
Rxe5 {[%clk 0:00:37]} 28. Nxe5 {[%clk 0:00:06.3]} 28... Nxe5 {[%clk 0:00:37.9]}
29. Kf1 {[%clk 0:00:04.2]} 29... c3 {[%clk 0:00:38.2]} 30. Ke2 {[%clk
0:00:04.6]} 30... d3+ {[%clk 0:00:37.7]} 31. Ke3 {[%clk 0:00:04.6]} 31... c2
{[%clk 0:00:33.7]} 32. Rc1 {[%clk 0:00:04.4]} 32... g5 {[%clk 0:00:29.5]} 33. g3
{[%clk 0:00:04.4]} 33... f5 {[%clk 0:00:19.9]} 34. f4 {[%clk 0:00:03.7]} 34...
gxf4+ {[%clk 0:00:19.6]} 35. gxf4 {[%clk 0:00:04.6]} 35... Ng4+ {[%clk
0:00:20.1]} 36. Kxd3 {[%clk 0:00:05.4]} 36... Nxh2 {[%clk 0:00:20.7]} 37. Rxc2
{[%clk 0:00:06]} 37... Ng4 {[%clk 0:00:21.2]} 38. Rg2 {[%clk 0:00:06.2]} 38...
h5 {[%clk 0:00:20.2]} 39. Kd4 {[%clk 0:00:07.1]} 39... Kf7 {[%clk 0:00:20.4]}
40. Kd5 {[%clk 0:00:07.3]} 40... Ne3+ {[%clk 0:00:18.3]} 41. Kd4 {[%clk
0:00:06.7]} 41... Nxg2 {[%clk 0:00:19.2]} 42. a4 {[%clk 0:00:07.6]} 42... Nxf4
{[%clk 0:00:19.2]} 43. a5 {[%clk 0:00:08.5]} 43... Ne6+ {[%clk 0:00:19.9]} 44.
Kd5 {[%clk 0:00:08.2]} 44... Nc7+ {[%clk 0:00:20.3]} 45. Kc6 {[%clk 0:00:09]}
45... Na8 {[%clk 0:00:19.9]} 46. a6 {[%clk 0:00:09.9]} 46... f4 {[%clk
0:00:20.3]} 47. Kb7 {[%clk 0:00:10.5]} 47... f3 {[%clk 0:00:21]} 48. Kxa8 {[%clk
0:00:10.7]} 48... f2 {[%clk 0:00:21.9]} 49. Kb8 {[%clk 0:00:11.6]} 49... f1=Q
{[%clk 0:00:22.4]} 50. a7 {[%clk 0:00:12.5]} 50... Qg2 {[%clk 0:00:23.1]} 51.
a8=Q {[%clk 0:00:13.4]} 51... Qxa8+ {[%clk 0:00:23.6]} 52. Kxa8 {[%clk
0:00:13.7]} 52... h4 {[%clk 0:00:24.5]} 53. Kb7 {[%clk 0:00:14.6]} 53... h3
{[%clk 0:00:25.4]} 54. Kc6 {[%clk 0:00:15.5]} 54... h2 {[%clk 0:00:26.3]} 55.
Kd5 {[%clk 0:00:16.4]} 55... h1=Q+ {[%clk 0:00:27.2]} 56. Ke5 {[%clk 0:00:17.2]}
56... Qh5+ {[%clk 0:00:27.2]} 57. Kf4 {[%clk 0:00:17.2]} 0-1

[Event "Late-Titled-Tuesday-Blitz-February-06-2024"]
[Site "Chess.com"]
[Date "2024.02.06"]
[Round "4"]
[White "ukchessbomber"]
[Black "DonMicheleCorleone"]
[Result "1-0"]
[WhiteElo "2665"]
[BlackElo "2488"]
[TimeControl "180+1"]
[EndTime "14:39:30 PST"]
[Termination "ukchessbomber won by resignation"]

1. c4 {[%clk 0:03:00.9]} 1... e6 {[%clk 0:02:56.5]} 2. d3 {[%clk 0:03:01]} 2...
d5 {[%clk 0:02:56.1]} 3. Nd2 {[%clk 0:03:01.3]} 3... d4 {[%clk 0:02:55.9]} 4. a3
{[%clk 0:03:01.1]} 4... a5 {[%clk 0:02:55.3]} 5. g3 {[%clk 0:03:01.7]} 5... Bd7
{[%clk 0:02:54.2]} 6. Bg2 {[%clk 0:03:02.6]} 6... Bc6 {[%clk 0:02:54.6]} 7. Ngf3
{[%clk 0:03:02.8]} 7... e5 {[%clk 0:02:53.3]} 8. O-O {[%clk 0:03:02.3]} 8... f6
{[%clk 0:02:53.6]} 9. e3 {[%clk 0:02:52.7]} 9... dxe3 {[%clk 0:02:52.9]} 10.
fxe3 {[%clk 0:02:52.2]} 10... Qxd3 {[%clk 0:02:52.3]} 11. Nxe5 {[%clk 0:02:49]}
11... Qxe3+ {[%clk 0:02:46]} 12. Kh1 {[%clk 0:02:49.5]} 12... Bxg2+ {[%clk
0:02:45.1]} 13. Kxg2 {[%clk 0:02:50.4]} 13... fxe5 {[%clk 0:02:42.3]} 14. Nf3
{[%clk 0:02:23.2]} 14... Qc5 {[%clk 0:02:32.5]} 15. Nxe5 {[%clk 0:01:11.3]}
15... Be7 {[%clk 0:02:26.8]} 16. Qg4 {[%clk 0:00:56.1]} 16... Qxe5 {[%clk
0:01:48.9]} 17. Qc8+ {[%clk 0:00:11.8]} 17... Bd8 {[%clk 0:01:48.5]} 18. Qxb7
{[%clk 0:00:10.2]} 18... Nf6 {[%clk 0:01:28.2]} 19. Qxa8 {[%clk 0:00:05]} 19...
O-O {[%clk 0:01:21.7]} 20. Bf4 {[%clk 0:00:04.3]} 20... Qe4+ {[%clk 0:01:15.7]}
21. Qxe4 {[%clk 0:00:03.9]} 21... Nxe4 {[%clk 0:01:16.6]} 22. Rfe1 {[%clk
0:00:04.5]} 22... Nf6 {[%clk 0:01:05.8]} 23. b4 {[%clk 0:00:04.6]} 23... axb4
{[%clk 0:01:02.1]} 24. axb4 {[%clk 0:00:05.5]} 24... Nc6 {[%clk 0:00:54.9]} 25.
b5 {[%clk 0:00:05.7]} 25... Nb4 {[%clk 0:00:44.5]} 26. Red1 {[%clk 0:00:06]}
26... Ne4 {[%clk 0:00:30.1]} 27. Ra8 {[%clk 0:00:05.6]} 27... Be7 {[%clk
0:00:15]} 28. Rxf8+ {[%clk 0:00:06.5]} 28... Kxf8 {[%clk 0:00:14.1]} 29. Bxc7
{[%clk 0:00:07.4]} 29... Nc3 {[%clk 0:00:10.1]} 30. Rc1 {[%clk 0:00:04.4]} 30...
Ne2 {[%clk 0:00:07.2]} 31. Re1 {[%clk 0:00:04]} 31... Nd4 {[%clk 0:00:07.6]} 32.
b6 {[%clk 0:00:03.3]} 32... Na6 {[%clk 0:00:05.5]} 33. Ra1 {[%clk 0:00:03]}
33... Nc5 {[%clk 0:00:04.1]} 34. Rf1+ {[%clk 0:00:02.6]} 34... Ke8 {[%clk
0:00:04]} 35. Rd1 {[%clk 0:00:03.4]} 35... Nc6 {[%clk 0:00:02.9]} 36. Rd5 {[%clk
0:00:04]} 36... Nb7 {[%clk 0:00:02.9]} 37. h4 {[%clk 0:00:03.3]} 37... Bd8
{[%clk 0:00:02.5]} 38. Kh3 {[%clk 0:00:03.1]} 38... Bxc7 {[%clk 0:00:02.4]} 39.
bxc7 {[%clk 0:00:03.9]} 39... Ne7 {[%clk 0:00:03.3]} 40. Rd1 {[%clk 0:00:03.1]}
40... Nc8 {[%clk 0:00:02.2]} 41. c5 {[%clk 0:00:03]} 41... Ke7 {[%clk
0:00:01.7]} 42. Kg4 {[%clk 0:00:03.5]} 42... Nxc5 {[%clk 0:00:02]} 43. Rd8
{[%clk 0:00:03.6]} 43... Nd6 {[%clk 0:00:02.3]} 44. Rxd6 {[%clk 0:00:04]} 1-0